{"text_format":"1","workbook":"xlsx","n_sheets":3,"sheets":["Formato","Instructivo de Diligenciamiento","Listas"],"not_rendered":{"charts":0,"images":3,"macros":1,"external_links":0,"defined_names":3,"comments":1,"pivot_tables":0},"unopened":[],"bounds":{"document_bytes":16777216,"sheet_cells":100000,"rows_first":2000,"rows_last":500,"rows_between":2000,"halvings":0,"cell_chars":16384,"cell_head_chars":4096},"cells_cut":0,"cells_raw":0,"read":"whole","date_system":"1900"}

{"sheet":"Formato","index":0,"n_rows":91,"n_cols":17,"rows_kept":91,"cut":false,"hidden":false,"merged":[[72,2,72,3],[72,8,72,9],[72,10,72,11],[72,16,72,17],[70,2,70,3],[70,8,70,9],[70,10,70,11],[70,16,70,17],[71,2,71,3],[71,8,71,9],[71,10,71,11],[71,16,71,17],[68,2,68,3],[68,8,68,9],[68,10,68,11],[68,16,68,17],[69,2,69,3],[69,8,69,9],[69,10,69,11],[69,16,69,17],[66,2,66,3],[66,8,66,9],[66,10,66,11],[66,16,66,17],[67,2,67,3],[67,8,67,9],[67,10,67,11],[67,16,67,17],[64,2,64,3],[64,8,64,9],[64,10,64,11],[64,16,64,17],[65,2,65,3],[65,8,65,9],[65,10,65,11],[65,16,65,17],[62,2,62,3],[62,8,62,9],[62,10,62,11],[62,16,62,17],[63,2,63,3],[63,8,63,9],[63,10,63,11],[63,16,63,17],[60,2,60,3],[60,8,60,9],[60,10,60,11],[60,16,60,17],[61,2,61,3],[61,8,61,9],[61,10,61,11],[61,16,61,17],[58,2,58,3],[58,8,58,9],[58,10,58,11],[58,16,58,17],[59,2,59,3],[59,8,59,9],[59,10,59,11],[59,16,59,17],[56,2,56,3],[56,8,56,9],[56,10,56,11],[56,16,56,17],[57,2,57,3],[57,8,57,9],[57,10,57,11],[57,16,57,17],[54,2,54,3],[54,8,54,9],[54,10,54,11],[54,16,54,17],[55,2,55,3],[55,8,55,9],[55,10,55,11],[55,16,55,17],[52,2,52,3],[52,8,52,9],[52,10,52,11],[52,16,52,17],[53,2,53,3],[53,8,53,9],[53,10,53,11],[53,16,53,17],[50,2,50,3],[50,8,50,9],[50,10,50,11],[50,16,50,17],[51,2,51,3],[51,8,51,9],[51,10,51,11],[51,16,51,17],[49,2,49,3],[49,8,49,9],[49,10,49,11],[49,16,49,17],[46,2,46,3],[46,8,46,9],[46,10,46,11],[46,16,46,17],[47,2,47,3],[47,8,47,9],[47,10,47,11],[47,16,47,17],[42,10,42,11],[42,16,42,17],[43,2,43,3],[43,8,43,9],[43,10,43,11],[43,16,43,17],[48,2,48,3],[48,8,48,9],[48,10,48,11],[48,16,48,17],[1,1,1,13],[7,1,7,2],[11,1,11,2],[23,9,23,13],[25,1,25,2],[25,4,25,5],[25,6,25,8],[25,9,25,10],[25,11,25,13],[11,3,11,9],[9,10,9,11],[9,12,9,13],[2,1,2,13],[4,1,5,3],[4,10,5,11],[4,7,5,9],[4,4,5,5],[27,6,27,8],[27,9,27,10],[27,11,27,13],[15,3,15,7],[27,4,27,5],[29,9,29,10],[21,1,21,13],[7,3,7,9],[9,1,9,2],[9,3,9,7],[7,12,7,13],[23,1,23,2],[23,4,23,8],[19,1,19,13],[29,1,29,2],[29,11,29,13],[17,1,17,13],[29,4,29,8],[15,1,15,2],[13,1,13,13],[27,1,27,2],[38,2,38,3],[38,16,38,17],[38,10,38,11],[37,10,37,17],[31,6,31,8],[31,11,31,13],[37,1,37,9],[31,1,31,2],[31,4,31,5],[31,9,31,10],[35,0,35,17],[37,0,38,0],[38,8,38,9],[39,16,39,17],[74,6,74,7],[74,8,74,9],[39,10,39,11],[39,2,39,3],[39,8,39,9],[40,2,40,3],[40,8,40,9],[40,10,40,11],[40,16,40,17],[41,2,41,3],[41,8,41,9],[41,10,41,11],[41,16,41,17],[42,2,42,3],[42,8,42,9],[44,2,44,3],[44,8,44,9],[44,10,44,11],[44,16,44,17],[45,2,45,3],[45,8,45,9],[45,10,45,11],[45,16,45,17],[77,0,77,17],[81,1,81,4],[81,5,81,7],[81,8,81,11],[82,1,82,4],[82,5,82,7],[82,8,82,11],[79,1,79,4],[79,5,79,7],[79,8,79,11],[80,1,80,4],[80,5,80,7],[80,8,80,11],[89,10,90,14],[89,1,89,3],[89,6,89,8],[90,1,90,3],[90,4,90,5],[90,6,90,8],[84,1,84,3],[84,11,86,13],[87,11,87,13],[87,1,87,3],[87,6,87,8]]}
[]
[null,"FORMATO PARA MODIFICACIÓN DE ÓRDENES DE COMPRA"]
[null,"Tienda Virtual del Estado Colombiano"]
[]
[null,"Número de Orden de Compra a modificar:",null,null,12944,null,null,"Número de modificación de la Orden de Compra:",null,null,2]
[]
[]
[null,"Entidad Compradora:",null,"ICETEX",null,null,null,null,null,null,null,"NIT:","899999035-7"]
[]
[null,"Nombre del solicitante:",null,"ANA CLEMENCIA SILVA NIGRINIS ",null,null,null,null,null,null,"Teléfono de contacto:",null,3821670]
[]
[null,"Proveedor :",null,"CONALCREDITOS CONALCENTER BPO"]
[]
[null,"Sección 1: Tipo de acción"]
[]
[null,"Tipo",null,"Modificación de Orden de Compra"]
[]
[null,"Sección 2: Justificación de la modificación o de las acciones a realizar"]
[]
[null,"El objetivo de la presente modificación es ajustar los precios de los items de la orden de compra  entre el proveedor de Centro de Contacto Conalcréditos y el ICETEX de mutuo acuerdo. Esto se da en razón a que los precios ofertados por el proveedor estan muy altos y comparativamente frente a  los de la  la Orden de Compra No. 13214 con Interactivo Contact Center en quienes también se proveen servicios de centro de contacto están mas bajos. De acuerdo con lo anterior,  el proveedor evaluó la posibilidad de reducir sus precios los cuales se presentan en la presente modificación.  "]
[]
[null,"Sección 3:  Modificación información general"]
[]
[null,"Nombre del campo",null,"¿Requiere modificación Si/No?","Datos actuales",null,null,null,null,"Nuevos datos"]
[]
[null,"Actualizar supervisor",null,"NO","Nombre del supervisor actual",null,0,null,null,"Nombre nuevo supervisor"]
[]
[null,"Dirección y/o teléfono Supervisor",null,"NO","Teléfono actual supervisor",null,0,null,null,"Teléfono nuevo supervisor"]
[]
[null,"Fecha de vencimiento",null,"NO","   La fecha vencimiento actual se tomará de la TVEC al momento del cambio",null,null,null,null,"Nueva fecha de vencimiento"]
[]
[null,"Dirección y/o teléfono Entidad",null,"NO","Dirección / teléfono actual Entidad",null,0,null,null,"Nueva dirección / teléfono Entidad"]
[]
[]
[]
["Sección 4: Modificación de artículos y servicios"]
[]
["Tipo de modificación","Información actual",null,null,null,null,null,null,null,null,"Nueva información"]
[null,"Número de la línea según O.C.","Nombre del artículo",null,"Cantidad","Unidad de medida","Precio unitario","Total","Información presupuestal",null,"Nombre del artículo",null,"Cantidad","Unidad de medida","Precio unitario","Total","Información presupuestal"]
["Modificación de artículo o servicio",1,"654 - Agente Minero de Datos-Agente profesional_Mes_Baja-Plata - 1 Und",null,14,"mes ",5400000,{"$f":"ROUND(E40*G40, 2)","v":75600000},"CDP VF-2016-043",null,{"$f":"C40","v":"654 - Agente Minero de Datos-Agente profesional_Mes_Baja-Plata - 1 Und"},null,9,"mes ",5400000,{"$f":"ROUND(M40*O40, 2)","v":48600000},"CDP VF-2016-043"]
["Agregar nuevo artículo o servicio","No aplica","No aplica",null,"No aplica","No aplica","No aplica",0,"No aplica",null,{"$f":"K40","v":"654 - Agente Minero de Datos-Agente profesional_Mes_Baja-Plata - 1 Und"},null,5,"mes ",4700000,23500000,"CDP VF-2016-043"]
["Modificación de artículo o servicio",3,"1317 - Mailing-__-Plata - 300000 Mail Individual",null,14,"mes ",8400000,{"$f":"ROUND(E42*G42, 2)","v":117600000},"CDP VF-2016-043",null,{"$f":"C42","v":"1317 - Mailing-__-Plata - 300000 Mail Individual"},null,9,"mes ",8400000,75600000,"CDP VF-2016-043"]
["Agregar nuevo artículo o servicio","No aplica","No aplica",null,"No aplica","No aplica","No aplica",0,"No aplica",null,{"$f":"K42","v":"1317 - Mailing-__-Plata - 300000 Mail Individual"},null,5,"mes ",1800000,9000000,"CDP VF-2016-043"]
["Modificación de artículo o servicio",4,"1309 - Mensaje SMS - Claro-__-Plata - 90000 Mensaje SMS",null,14,"mes ",7020000,{"$f":"ROUND(E44*G44, 2)","v":98280000},"CDP VF-2016-043",null,{"$f":"C44","v":"1309 - Mensaje SMS - Claro-__-Plata - 90000 Mensaje SMS"},null,9,"mes ",7020000,63180000,"CDP VF-2016-043"]
["Agregar nuevo artículo o servicio","No aplica","No aplica",null,"No aplica","No aplica","No aplica",0,"No aplica",null,{"$f":"K44","v":"1309 - Mensaje SMS - Claro-__-Plata - 90000 Mensaje SMS"},null,5,"mes ",1980000,9900000,"CDP VF-2016-043"]
["Modificación de artículo o servicio",5,"1310 - Mensaje SMS - Movistar-__-Plata - 90000 Mensaje SMS",null,14,"mes ",7020000,{"$f":"ROUND(E46*G46, 2)","v":98280000},"CDP VF-2016-043",null,{"$f":"C46","v":"1310 - Mensaje SMS - Movistar-__-Plata - 90000 Mensaje SMS"},null,9,"mes ",7020000,63180000,"CDP VF-2016-043"]
["Agregar nuevo artículo o servicio","No aplica","No aplica",null,"No aplica","No aplica","No aplica",0,"No aplica",null,{"$f":"K46","v":"1310 - Mensaje SMS - Movistar-__-Plata - 90000 Mensaje SMS"},null,5,"mes ",1980000,9900000,"CDP VF-2016-043"]
["Modificación de artículo o servicio",6,"1312 - Mensaje SMS - Otros Operadores-__-Plata - 5000 Mensaje SMS",null,14,"mes ",390000,{"$f":"ROUND(E48*G48, 2)","v":5460000},"CDP VF-2016-043",null,{"$f":"C48","v":"1312 - Mensaje SMS - Otros Operadores-__-Plata - 5000 Mensaje SMS"},null,9,"mes ",390000,3510000,"CDP VF-2016-043"]
["Agregar nuevo artículo o servicio","No aplica","No aplica",null,"No aplica","No aplica","No aplica",0,"No aplica",null,{"$f":"K48","v":"1312 - Mensaje SMS - Otros Operadores-__-Plata - 5000 Mensaje SMS"},null,5,"mes ",110000,550000,"CDP VF-2016-043"]
["Modificación de artículo o servicio",7,"1311 - Mensaje SMS - Tigo-__-Plata - 90000 Mensaje SMS",null,14,"mes ",7020000,{"$f":"ROUND(E50*G50, 2)","v":98280000},"CDP VF-2016-043",null,{"$f":"C50","v":"1311 - Mensaje SMS - Tigo-__-Plata - 90000 Mensaje SMS"},null,9,"mes ",7020000,63180000,"CDP VF-2016-043"]
["Agregar nuevo artículo o servicio","No aplica","No aplica",null,"No aplica","No aplica","No aplica",0,"No aplica",null,{"$f":"K50","v":"1311 - Mensaje SMS - Tigo-__-Plata - 90000 Mensaje SMS"},null,5,"mes ",1980000,9900000,"CDP VF-2016-043"]
["Modificación de artículo o servicio",8,"1213 - Minuto a 1-8000 desde Fijos-__-Plata - 55000 Minuto",null,14,"mes ",11715000,{"$f":"ROUND(E52*G52, 2)","v":164010000},"CDP VF-2016-043",null,{"$f":"C52","v":"1213 - Minuto a 1-8000 desde Fijos-__-Plata - 55000 Minuto"},null,9,"mes ",11715000,105435000,"CDP VF-2016-043"]
["Agregar nuevo artículo o servicio","No aplica","No aplica",null,"No aplica","No aplica","No aplica",0,"No aplica",null,{"$f":"K52","v":"1213 - Minuto a 1-8000 desde Fijos-__-Plata - 55000 Minuto"},null,5,"mes ",9350000,46750000,"CDP VF-2016-043"]
["Modificación de artículo o servicio",9,"1221 - Minuto a Celular outbound - Claro-__-Plata - 81000 Minuto",null,14,"mes ",7695000,{"$f":"ROUND(E54*G54, 2)","v":107730000},"CDP VF-2016-043",null,{"$f":"C54","v":"1221 - Minuto a Celular outbound - Claro-__-Plata - 81000 Minuto"},null,9,"mes ",7695000,69255000,"CDP VF-2016-043"]
["Agregar nuevo artículo o servicio","No aplica","No aplica",null,"No aplica","No aplica","No aplica",0,"No aplica",null,{"$f":"K54","v":"1221 - Minuto a Celular outbound - Claro-__-Plata - 81000 Minuto"},null,5,"mes ",{"$f":"50*81000","v":4050000},20250000,"CDP VF-2016-043"]
["Modificación de artículo o servicio",10," 1222 - Minuto a Celular outbound - Movistar-__-Plata - 63000 Minuto ",null,14,"mes ",5985000,{"$f":"ROUND(E56*G56, 2)","v":83790000},{"$f":"I54","v":"CDP VF-2016-043"},null,{"$f":"C56","v":" 1222 - Minuto a Celular outbound - Movistar-__-Plata - 63000 Minuto "},null,9,"mes ",5985000,53865000,"CDP VF-2016-043"]
["Agregar nuevo artículo o servicio","No aplica","No aplica",null,"No aplica","No aplica","No aplica",0,"No aplica",null,{"$f":"K56","v":" 1222 - Minuto a Celular outbound - Movistar-__-Plata - 63000 Minuto "},null,5,"mes ",3150000,15750000,"CDP VF-2016-043"]
["Modificación de artículo o servicio",11,"1224 - Minuto a Celular outbound - Otros operadores-__-Plata - 5000 Minuto",null,14,"mes ",475000,{"$f":"ROUND(E58*G58, 2)","v":6650000},{"$f":"I56","v":"CDP VF-2016-043"},null,{"$f":"C58","v":"1224 - Minuto a Celular outbound - Otros operadores-__-Plata - 5000 Minuto"},null,9,"mes ",475000,4275000,"CDP VF-2016-043"]
["Agregar nuevo artículo o servicio","No aplica","No aplica",null,"No aplica","No aplica","No aplica",0,"No aplica",null,{"$f":"K58","v":"1224 - Minuto a Celular outbound - Otros operadores-__-Plata - 5000 Minuto"},null,5,"mes ",250000,1250000,"CDP VF-2016-043"]
["Modificación de artículo o servicio",12," 1223 - Minuto a Celular outbound - Tigo-__-Plata - 36000 Minuto ",null,14,"mes ",3420000,{"$f":"ROUND(E60*G60, 2)","v":47880000},{"$f":"I58","v":"CDP VF-2016-043"},null,{"$f":"C60","v":" 1223 - Minuto a Celular outbound - Tigo-__-Plata - 36000 Minuto "},null,9,"mes ",3420000,30780000,"CDP VF-2016-043"]
["Agregar nuevo artículo o servicio","No aplica","No aplica",null,"No aplica","No aplica","No aplica",0,"No aplica",null,{"$f":"K60","v":" 1223 - Minuto a Celular outbound - Tigo-__-Plata - 36000 Minuto "},null,5,"mes ",1800000,9000000,"CDP VF-2016-043"]
["Modificación de artículo o servicio",13,"1217 - Minuto Llamada Bogotá Outbound-__-Plata - 120000 Minuto",null,14,"mes ",1320000,{"$f":"ROUND(E62*G62, 2)","v":18480000},{"$f":"I60","v":"CDP VF-2016-043"},null,{"$f":"C62","v":"1217 - Minuto Llamada Bogotá Outbound-__-Plata - 120000 Minuto"},null,9,"mes ",1320000,11880000,"CDP VF-2016-043"]
["Agregar nuevo artículo o servicio","No aplica","No aplica",null,"No aplica","No aplica","No aplica",0,"No aplica",null,{"$f":"K62","v":"1217 - Minuto Llamada Bogotá Outbound-__-Plata - 120000 Minuto"},null,5,"mes ",1412400,7062000,"CDP VF-2016-043"]
["Modificación de artículo o servicio",14,"1219 - Minuto larga distancia nacional outbound-__-Plata - 170000 Minuto",null,14,"mes ",15300000,{"$f":"ROUND(E64*G64, 2)","v":214200000},{"$f":"I62","v":"CDP VF-2016-043"},null,{"$f":"C64","v":"1219 - Minuto larga distancia nacional outbound-__-Plata - 170000 Minuto"},null,9,"mes ",15300000,137700000,"CDP VF-2016-043"]
["Agregar nuevo artículo o servicio","No aplica","No aplica",null,"No aplica","No aplica","No aplica",0,"No aplica",null,{"$f":"K64","v":"1219 - Minuto larga distancia nacional outbound-__-Plata - 170000 Minuto"},null,5,"mes ",8500000,42500000,"CDP VF-2016-043"]
["Modificación de artículo o servicio",15,"198 - Agente Backoffice-Agente general_Mes_Baja-Plata - 2 Und",null,14,"mes ",7200000,{"$f":"ROUND(E66*G66, 2)","v":100800000},{"$f":"I64","v":"CDP VF-2016-043"},null,{"$f":"C66","v":"198 - Agente Backoffice-Agente general_Mes_Baja-Plata - 2 Und"},null,9,"mes ",7200000,64800000,"CDP VF-2016-043"]
["Agregar nuevo artículo o servicio","No aplica","No aplica",null,"No aplica","No aplica","No aplica",0,"No aplica",null,{"$f":"K66","v":"198 - Agente Backoffice-Agente general_Mes_Baja-Plata - 2 Und"},null,5,"mes ",6300000,31500000,"CDP VF-2016-043"]
["Modificación de artículo o servicio",17,"1297 - Minuto IVR Enrutador-__-Plata - 100000 Minuto",null,14,"mes ",1300000,{"$f":"ROUND(E68*G68, 2)","v":18200000},{"$f":"I66","v":"CDP VF-2016-043"},null,{"$f":"C68","v":"1297 - Minuto IVR Enrutador-__-Plata - 100000 Minuto"},null,9,"mes ",1300000,11700000,"CDP VF-2016-043"]
["Agregar nuevo artículo o servicio","No aplica","No aplica",null,"No aplica","No aplica","No aplica",0,"No aplica",null,{"$f":"K68","v":"1297 - Minuto IVR Enrutador-__-Plata - 100000 Minuto"},null,5,"mes ",600000,3000000,"CDP VF-2016-043"]
["Modificación de artículo o servicio",18,"6 - Agente con puesto de trabajo-Agente general_Mes_Baja-Plata - 22 Und",null,14,"mes ",82500000,{"$f":"ROUND(E70*G70, 2)","v":1155000000},{"$f":"I68","v":"CDP VF-2016-043"},null,{"$f":"C70","v":"6 - Agente con puesto de trabajo-Agente general_Mes_Baja-Plata - 22 Und"},null,9,"mes ",82500000,742500000,"CDP VF-2016-043"]
["Agregar nuevo artículo o servicio","No aplica","No aplica",null,"No aplica","No aplica","No aplica",0,"No aplica",null,{"$f":"K70","v":"6 - Agente con puesto de trabajo-Agente general_Mes_Baja-Plata - 22 Und"},null,5,"mes ",75900000,379500000,"CDP VF-2016-043"]
["Modificación de artículo o servicio",19,"1323 - VPN sobre Internet a Centro de Contacto o Entidad Compradora-__-Plata - 1 Und",null,14,"mes ",250000,{"$f":"ROUND(E72*G72, 2)","v":3500000},{"$f":"I70","v":"CDP VF-2016-043"},null,{"$f":"C72","v":"1323 - VPN sobre Internet a Centro de Contacto o Entidad Compradora-__-Plata - 1 Und"},null,9,"mes ",250000,2250000,"CDP VF-2016-043"]
["Agregar nuevo artículo o servicio","No aplica","No aplica",null,"No aplica","No aplica","No aplica",0,"No aplica",null,{"$f":"K72","v":"1323 - VPN sobre Internet a Centro de Contacto o Entidad Compradora-__-Plata - 1 Und"},null,5,"mes ",192600,963000,"CDP VF-2016-043"]
[]
[null,null,null,null,null,null,"Cantidad de celdas a agregar:",null,1]
[]
[]
["Sección 5: Resultados de la modificación"]
[]
["Número de la línea según O.C.","Nombre del artículo",null,null,null,"Valores actuales",null,null,"Nuevos valores"]
[null,"Valor de la línea IVA en la Orden de Compra:",null,null,null,418393968,null,null,331539550,null,null,null,0]
[null,"Valor de la línea AIU en la Orden de Compra:"]
[null,"Valor de la línea gravámenes adicionales en la Orden de Compra:"]
[]
[null,null,null,null,null,null,null,null,null,null,null,"21 de septiembre de 2017"]
[]
[]
[null,"Firma ordenador del gasto",null,null,null,null,"Firma de Proveedor",null,null,null,null,"Fecha de elaboración"]
[]
["Nombre:","ANA CLEMENCIA SILVA NIGRINIS",null,null,null,"Nombre:","MAGNOLIA GIRALDO LOPEZ ",null,null,null,"Las partes manifestamos que este mismo documento se cargará en la plataforma en formato Excel (.xlsm) y los cambios se pueden validar con el mismo."]
["Documento de Identidad:",35467233,null,null,"Documento de Identidad:",null,31147589]

{"sheet":"Instructivo de Diligenciamiento","index":1,"n_rows":4,"n_cols":2,"rows_kept":4,"cut":false,"hidden":false,"merged":[[3,1,82,10]]}
[]
[]
[]
[null,"Instrucciones de diligenciamiento:\n\nColombia Compra Eficiente ha diseñado este formato para que las Entidades Compradoras puedan realizar aclaraciones, modificaciones, cancelaciones o terminaciones y liquidaciones de las Órdenes de Compra que estén en ejecución y vigentes, o ejecutadas. Para ello debe indicar:\n\nDatos generales: Datos básicos como número de la Orden de Compra que requiere cambiar, número consecutivo de solicitud tenga en cuenta que la primera solicitud corresponderá a la número “1”, nombre de la Entidad Compradora, nombre de la persona que solicita las acciones, celular o número de teléfono y extensión, NIT de la Entidad Compradora y el nombre del Proveedor que ejecuta la Orden de Compra.\n\nSección 1. Tipo de acción: Las Entidades pueden solicitar cuatro tipos de acciones respecto de las Órdenes de Compra:\n\n(i) Aclaraciones: Son las indicaciones de cambio de información que no afectan el plazo, el valor o las condiciones contractuales de las Órdenes de Compra como: redacción en las condiciones de entrega, errores de digitación  o rectificación de la fecha de vencimiento. Estas aclaraciones no requieren de la aceptación del Proveedor. Sin embargo una vez realizada la aclaración en la Orden de Compra, la Entidad Compradora debe notificarle al Proveedor el cambio. \n\n(ii) Modificaciones: Son indicaciones de cambio en aumento o disminución de valor o plazo,  aumento o disminución de los bienes o servicios solicitados, cambios en las condiciones de ejecución o datos que afecten la ejecución de la Orden de Compra. Solo en los casos de cambio de supervisor y datos de notificación como dirección o teléfono se puede omitir la firma del Proveedor. Sin embargo una vez realizada la modificación, la Entidad Compradora debe notificarle al Proveedor el cambio.\n\n(iii) Terminación: Puede darse por 2 razones, (i) por manifestación de la Entidad de no iniciar la ejecución de la Orden de Compra la cual también debe ser aceptada por el Proveedor y (ii) por mutuo acuerdo entre las partes de terminar anticipadamente la Orden de Compra.\n\n(iv) Liquidación: Este tipo de acción es mediante la cual una Entidad Compradora formaliza la liquidación de las obligaciones derivadas de la Orden de Compra y así establece las acreencias pendientes a favor o en contra de cada parte de la Orden de Compra, también sirve para aclarar la ejecución de la misma. Este tipo de acción se debe aplicar dentro de los términos establecidos en cada Acuerdo Marco, para lo cual se requiere la solicitud por parte de la Entidad Compradora firmada por el Ordenador del Gasto y el representante legal del Proveedor, así como el informe del supervisor de la Orden de Compra. \n\nSección 2.  Justificación: Las razones de la realización del cambio de la Orden de Compra.\n\nSección 3. Modificación información general: la idea en esta sección es indicar cuales son los datos de información general de la orden de compra que requiere cambiar\n\nSección 4. Modificación de artículos o servicios: esta sección unicamente aplica en caso de que la acción a realizar sea modificar, terminar o liquidar la orden de compra, allí deberá indicar el tipo de modificación que desea realizar e ingresar o modificar los articulos que desea ajustar. Al momento de diligenciar esta sección tenga en cuenta las siguientes recomendaciones:\n\n(i) Las correcciones en el plazo de ejecución son diferentes a las modificaciones en el plazo, ejemplo: la Entidad Compradora adquirió elementos con tres entregas parciales pero digitó como fecha final de la Orden de Compra la fecha de la primera entrega, para corregir esto la Entidad Compradora selecciona en tipo de acción: aclaración y en el campo de fecha de vencimiento indica la fecha correcta. En el caso que fuera cambio de fecha fin, ejemplo: prorrogar o disminuir varios meses la ejecución de la Orden de Compra se utiliza en tipo de acción: modificación.\n\n(ii) para la realización de las modificaciones tenga en cuenta las secciones de modificación de cada una de las guías de compra\n\n(iii) los valores y cantidades solo pueden tener hasta dos decimales.\n\n(iv) la decisión de modificar, adicionar o combinar las dos opciones dependerá de las necesidades de cada Entidad Compradora, ejemplo si es un servicio y adicionalmente solo requiere modificar “cantidad” se recomienda seleccionar “modificación de artículo”, cuando son bienes puede modificar cualquiera de los demás campos.\n\n(v) si requiere cambio de condiciones de un servicio ya ejecutado se recomienda modificar la línea para que se refleje la parte ejecutada y adicionar una nueva línea para las nuevas condiciones del servicio que va a ejecutar.\n\nSección 5. Resultados de la modificación: La entidad siempre debe indicar en el recuadro el valor total del IVA, AIU, gravámenes adicionales, estos campos serán los valores finales que quedarán en la Orden de Compra después de la modificación, tenga en cuenta que el campo de IVA no aplica para algunos AMP como: papelería, vehículos y SOAT y que el campo de AIU solo aplica para aseo y cafetería.\n\nFirmas del documento: El ordenador del gasto de la Entidad Compradora debe firmar el documento y enviarlo al Proveedor para que lo acepte y firme, en caso de que así se requiera. El documento firmado debe ser enviado a través del aplicativo dispuesto por   Colombia Compra Eficiente para realizar las acciones solicitadas.\n\nFecha de elaboración del documento: Corresponde a la fecha en la que la Entidad Compradora y el Proveedor llegaron a un acuerdo para realizar las acciones y se suscribe el documento, recuerde que: (i) para poder realizar modificaciones en las Órdenes de Compra las mismas se deben acordar dentro de la vigencia de la Orden de Compra, (ii) Las órdenes de compra no se podrán modificar si ya se encuentran vencidas, (iii) Se da por realizada la modificación o acción que requiera realizar la Entidad, desde le momento en que las partes la firmen. Colombia Compra Eficiente lo único que realiza en la Tienda Virtual es el proceso de publicación de la modificación o ajuste que las partes hayan acordado a través de la firma de este documento. \n\nSi la Entidad Compradora requiere agregar archivos que estén relacionados con las acciones a realizar como: copia del CDP y/o aprobación de Vigencia Futura (VF) que soporta la adición, soportes documentales, correos, cartas, etc... debe publicarlos junto con el documento de modificación suscrito en un único archivo .Pdf con alta resolución de escaneo, si el documento no es legible se tomaran los cambios contenidos en el formato Excel, tenga en cuenta que Colombia Compra Eficiente únicamente publicará las modificaciones especificadas en el formato enviado por el aplicativo.\n\n"]

{"sheet":"Listas","index":2,"n_rows":5,"n_cols":3,"rows_kept":5,"cut":false,"hidden":true,"merged":[]}
["TipoDeModificacion",null,"Modificacion"]
["Modificación de Orden de Compra",null,"Modificación de artículo o servicio"]
["Aclaración a la Orden de Compra",null,"Agregar nuevo artículo o servicio"]
["Terminación de orden de compra",null,"Eliminar artículo o servicio"]
["Liquidación de Orden de Compra",null,"Ninguna"]